{"text_format":"2","workbook":"xlsx","n_sheets":3,"sheets":["Anmeldung_Selektion","Selektionskader","Vereine"],"not_rendered":{"charts":0,"images":1,"macros":0,"external_links":0,"defined_names":1,"comments":0,"pivot_tables":0},"unopened":[],"bounds":{"document_bytes":16777216,"sheet_cells":100000,"run_cost":"one","rows_first":2000,"rows_last":500,"rows_between":2000,"halvings":0,"cell_chars":16384,"cell_head_chars":4096},"cells_cut":0,"cells_raw":0,"read":"whole","date_system":"1900"}

{"sheet":"Anmeldung_Selektion","index":0,"n_rows":11,"n_cols":25,"rows_kept":11,"cut":false,"hidden":false,"merged":[[1,0,1,4],[1,6,1,8],[1,9,1,12],[1,13,1,24],[17,2,19,2]]}
["Anmeldeformular Selektion Kantonalbernischer Unihockeyverband "]
["Verein",{"$nulls":4},"Kader","Verantw. Person Verein",null,null,"Helfer Selektion",null,null,null,"Spieler"]
["Vereinsname","E-Mail-Verein","Adresse Verein","PLZ Verein","Ort Verein","Selektionskader","Name, Vorname zuständige Person","E-Mail zuständige Person","Telefon zuständige Person","Helfer Name, Vorname für Selektion","Helfer E-Mail für Selektion","Helfer-Telefon für Selektion","Helfer-Bemerkung\nHelfer","Vereins-rangliste","Nachname","Vorname","Adresse","PLZ","Ort","Geburtsdatum","Telefon Spieler","Notfall-Tel.-Nr.","E-Mail-Spieler","Position","Stockauslegung"]
["Lions Konolfingen",{"$f":"VLOOKUP($A4,Tabelle1[[Vereinskurzname]:[Vereinsort]],7,FALSE)","v":"info@uhclions.ch"},{"$f":"VLOOKUP($A4,Tabelle1[[Vereinskurzname]:[Vereinsort]],2,FALSE)","v":"Postfach 142"},{"$f":"VLOOKUP($A4,Tabelle1[[Vereinskurzname]:[Vereinsort]],4,FALSE)","v":3510},{"$f":"VLOOKUP($A4,Tabelle1[[Vereinskurzname]:[Vereinsort]],5,FALSE)","v":"Konolfingen"},"Jun U13","Muster, Hans","Muster@musterag.ch","013 123 45 67","Meier, Fritz","meier@fritz.ch","098 765 43 21",null,1,"Müller","Peter","Musterweg 1",9988,"Musterhausen","1900-01-01","012 345 67 89","098 765 43 21","pm@gmx.be","Verteidiger","rechts"]
[null,{"$f":"VLOOKUP($A5,Tabelle1[[Vereinskurzname]:[Vereinsort]],7,FALSE)","v":{"$error":"#N/A"}},{"$f":"VLOOKUP($A5,Tabelle1[[Vereinskurzname]:[Vereinsort]],2,FALSE)","v":{"$error":"#N/A"}},{"$f":"VLOOKUP($A5,Tabelle1[[Vereinskurzname]:[Vereinsort]],4,FALSE)","v":{"$error":"#N/A"}},{"$f":"VLOOKUP($A5,Tabelle1[[Vereinskurzname]:[Vereinsort]],5,FALSE)","v":{"$error":"#N/A"}}]
[null,{"$f":"VLOOKUP($A6,Tabelle1[[Vereinskurzname]:[Vereinsort]],7,FALSE)","v":{"$error":"#N/A"}},{"$f":"VLOOKUP($A6,Tabelle1[[Vereinskurzname]:[Vereinsort]],2,FALSE)","v":{"$error":"#N/A"}},{"$f":"VLOOKUP($A6,Tabelle1[[Vereinskurzname]:[Vereinsort]],4,FALSE)","v":{"$error":"#N/A"}},{"$f":"VLOOKUP($A6,Tabelle1[[Vereinskurzname]:[Vereinsort]],5,FALSE)","v":{"$error":"#N/A"}}]
[null,{"$f":"VLOOKUP($A7,Tabelle1[[Vereinskurzname]:[Vereinsort]],7,FALSE)","v":{"$error":"#N/A"}},{"$f":"VLOOKUP($A7,Tabelle1[[Vereinskurzname]:[Vereinsort]],2,FALSE)","v":{"$error":"#N/A"}},{"$f":"VLOOKUP($A7,Tabelle1[[Vereinskurzname]:[Vereinsort]],4,FALSE)","v":{"$error":"#N/A"}},{"$f":"VLOOKUP($A7,Tabelle1[[Vereinskurzname]:[Vereinsort]],5,FALSE)","v":{"$error":"#N/A"}}]
[null,{"$f":"VLOOKUP($A8,Tabelle1[[Vereinskurzname]:[Vereinsort]],7,FALSE)","v":{"$error":"#N/A"}},{"$f":"VLOOKUP($A8,Tabelle1[[Vereinskurzname]:[Vereinsort]],2,FALSE)","v":{"$error":"#N/A"}},{"$f":"VLOOKUP($A8,Tabelle1[[Vereinskurzname]:[Vereinsort]],4,FALSE)","v":{"$error":"#N/A"}},{"$f":"VLOOKUP($A8,Tabelle1[[Vereinskurzname]:[Vereinsort]],5,FALSE)","v":{"$error":"#N/A"}}]
[null,{"$f":"VLOOKUP($A9,Tabelle1[[Vereinskurzname]:[Vereinsort]],7,FALSE)","v":{"$error":"#N/A"}},{"$f":"VLOOKUP($A9,Tabelle1[[Vereinskurzname]:[Vereinsort]],2,FALSE)","v":{"$error":"#N/A"}},{"$f":"VLOOKUP($A9,Tabelle1[[Vereinskurzname]:[Vereinsort]],4,FALSE)","v":{"$error":"#N/A"}},{"$f":"VLOOKUP($A9,Tabelle1[[Vereinskurzname]:[Vereinsort]],5,FALSE)","v":{"$error":"#N/A"}}]
[null,{"$f":"VLOOKUP($A10,Tabelle1[[Vereinskurzname]:[Vereinsort]],7,FALSE)","v":{"$error":"#N/A"}},{"$f":"VLOOKUP($A10,Tabelle1[[Vereinskurzname]:[Vereinsort]],2,FALSE)","v":{"$error":"#N/A"}},{"$f":"VLOOKUP($A10,Tabelle1[[Vereinskurzname]:[Vereinsort]],4,FALSE)","v":{"$error":"#N/A"}},{"$f":"VLOOKUP($A10,Tabelle1[[Vereinskurzname]:[Vereinsort]],5,FALSE)","v":{"$error":"#N/A"}}]
[null,{"$f":"VLOOKUP($A11,Tabelle1[[Vereinskurzname]:[Vereinsort]],7,FALSE)","v":{"$error":"#N/A"}},{"$f":"VLOOKUP($A11,Tabelle1[[Vereinskurzname]:[Vereinsort]],2,FALSE)","v":{"$error":"#N/A"}},{"$f":"VLOOKUP($A11,Tabelle1[[Vereinskurzname]:[Vereinsort]],4,FALSE)","v":{"$error":"#N/A"}},{"$f":"VLOOKUP($A11,Tabelle1[[Vereinskurzname]:[Vereinsort]],5,FALSE)","v":{"$error":"#N/A"}}]

{"sheet":"Selektionskader","index":1,"n_rows":5,"n_cols":5,"rows_kept":5,"cut":false,"hidden":true,"merged":[]}
["Selektionskader",null,"Stockauslegung",null,"Position"]
["Jun U13",null,"links",null,"Stürmer"]
["Jun U15",null,"rechts",null,"Center"]
["JunIn U13",null,null,null,"Verteidiger"]
["JunIn U15",null,null,null,"Torhüter"]

{"sheet":"Vereine","index":2,"n_rows":68,"n_cols":15,"rows_kept":68,"cut":false,"hidden":true,"merged":[]}
["Vereinsname","Vereinskurzname","Strasse","Zusatz","Plz","Ort","Kanton","Email","Kontaktperson","Region","Sprache","Kanton2","Vereinsort","Spalte1","Spalte2"]
["Bern Capitals","Bern Capitals","Badhausstrasse 2",null,3063,"Ittigen","BE","info@berncapitals.ch","Heidi Heiniger","078 605 95 19","KBUV","Deutsch","BE","Bern"]
["Bern Capitals Ost","Bern Capitals Ost","Badhausstrasse 2",null,3063,"Ittigen","BE","info@berncapitals.ch","Heidi Heiniger","078 605 95 19","KBUV","Deutsch","BE","Bern"]
["UHC Black Creek Schwarzenbach BE","Black Creek Schwarzenbach","Dörfli 6",null,4953,"Schwarzenbach b.H.","BE","info@uhc-schwarzenbach.ch","Benno Eiholzer","079 671 15 89","KBUV","Deutsch","BE","Schwarzenbach BE"]
["BTV Bern","BTV Bern","Quartiergasse 16",null,3013,"Bern","BE","peterhaesler@yahoo.de","Peter Häsler","079 256 91 08","KBUV","Deutsch","BE","Bern"]
["UHC emotion Huttwil","emotion Huttwil","Floraweg 8b",null,4950,"Huttwil","BE","stalder_11@hotmail.com","Lukas Stalder",787165325,"KBUV","Deutsch","BE","Huttwil"]
["Floorball Köniz","Floorball Köniz","Geschäftsstelle",null,3098,"Köniz","BE","geschaeftsstelle@floorball-koeniz.ch","Heinz Zaugg","079 697 83 50","NLV","Deutsch","BE","Köniz"]
["UHC Gladiators Münsingen","Gladiators Münsingen","Stauffacherstrasse 33",null,3014,"Bern","BE","daniel.portner@gladiators-uhcm.ch","Daniel Portner","079 352 62 58","KBUV","Deutsch","BE","Münsingen"]
["Unihockey Grauholz-Zollikofen","Grauholz-Zollikofen","Kutscherweg 16",null,3047,"Bremgarten b. Bern","BE","simon.grundbacher@bluemail.ch","Simon Grundbacher","078 853 51 10","KBUV","Deutsch","BE","Zollikofen"]
["UHC Gürbetal RK Belp","Gürbetal RK Belp","Postfach 145",null,3123,"Belp","BE","info@guerbetalrk.ch","Simon Burkhalter","079 717 29 74","KBUV","Deutsch","BE","Belp"]
["Hornets Regio Moosseedorf Worblental","Hornets R.Moosseedorf Worblental","Sportweg 3",null,3322,"Urtenen-Schönbühl","BE","hornets@hornets.ch","Daniel Meienberg",318520735,"KBUV","Deutsch","BE","Moosseedorf"]
["UHC Lions Konolfingen","Lions Konolfingen","Postfach 142",null,3510,"Konolfingen","BE","info@uhclions.ch","Matthias Wälti","079 777 87 11","KBUV","Deutsch","BE","Konolfingen"]
["UHC Oberland 84 Interlaken","Oberland 84 Interlaken","Postfach 368",null,3800,"Interlaken","BE","info@uhcoberland84.ch","Benjamin Junker","079 790 75 52","KBUV","Deutsch","BE","Interlaken"]
["UHC Racoons Herzogenbuchsee/Heim.","Racoons Herzogenbuchsee","Bäreggstrasse 33",null,4900,"Langenthal","BE","anna.howald@gmail.com","Anna Howald",764636348,"KBUV","Deutsch","BE","Herzogenbuchsee"]
["SC Laupen","SC Laupen","Postfach 41",null,3177,"Laupen BE","BE","pauli.amelie@gmail.com","Amélie Pauli","079 728 24 89","KBUV","Deutsch","BE","Laupen BE"]
["SC- Rüeggisberg","SC-Rüeggisberg","Egggasse 8",null,3088,"Rüeggisberg","BE","simury@hotmail.com","Simon Ryser","079 580 41 00","KBUV","Deutsch","BE","Rüeggisberg"]
["UHV Skorpion Emmental Zollbrück","Skorpion Emmental Zollbrück","Obereiweg 11",null,3436,"Zollbrück","BE","info@skorpion-emmental.ch","Urs Wyss","079 667 82 32","NLV","Deutsch","BE","Zollbrück"]
["SV Krauchthal","SV Krauchthal","Chutzenstrasse 53",null,3007,"Bern","BE","zengstoff@bluewin.ch","Christoph Zenger",796225279,"KBUV","Deutsch","BE","Krauchthal"]
["SV Wiler-Ersigen","SV Wiler-Ersigen","Bernapark 19",null,3066,"Stettlen","SO","info@svwe.ch","c/o Selina Moser-Tenger","077 527 02 38","NLV","Deutsch","BE","Wiler b.Utzenstorf"]
["Team Flamingo Biglen","Team Flamingo","Lütiwil 35",null,3508,"Arni","BE","kevin.habegger@hotmail.com","Kevin Habegger","079 326 39 27","KBUV","Deutsch","BE","Worb"]
["Unihockey Tigers Langnau","Tigers Langnau","x",null,3532,"Zäziwil","BE","info@unihockeytigers.ch","Geschäftsstelle","079 274 14 09","NLV","Deutsch","BE","Langnau im Emmental"]
["Unihockey Tigers Linden-Röthenbach","Tigers Linden-Röthenbach","",null,3532,"Zäziwil","BE","info@unihockeytigers.ch","Geschäftsstelle",792741409,"KBUV","Deutsch","BE","Linden"]
["Unihockey Tigers Zäziwil","Tigers Zäziwil","",null,3532,"Zäziwil","BE","info@unihockeytigers.ch","Geschäftsstelle",792741409,"KBUV","Deutsch","BE","Zäziwil"]
["TV Allmendingen","TV Allmendingen","",null,3608,"Thun","BE","schmid.tobias@hotmail.com","Tobias Schmid",792589193,"KBUV","Deutsch","BE","Allmendingen"]
["TV Bözingen","TV Bözingen","Längackerstrasse 16",null,2560,"Nidau","BE","unihockey_92@hotmail.com","Jan Binggeli",794425441,"KBUV","Deutsch","BE","Bözingen"]
["TV Heimiswil","TV Heimiswil","Heimismatt 337",null,3413,"Kaltacker","BE","chjoerg@bluewin.ch","Christian Jörg","034 422 02 13","KBUV","Deutsch","BE","Heimiswil"]
["TV Orpund","TV Orpund","Neumttweg 12",null,3250,"Lyss","BE","unihockey@tvorpund.ch","Mischa Hübscher",794453524,"KBUV","Deutsch","BE","Orpund"]
["TV Wabern","TV Wabern","Mooshübeliweg 20",null,3075,"Rüfenacht","BE","tvwabernunihockey@hotmail.com","Daniel Müller",793824610,"KBUV","Deutsch","BE","Wabern"]
["UC Moutier","UC Moutier","Rue de Chalière 74",null,2740,"Moutier","BE","y.misteli@bluewin.ch","Yves Misteli",799158880,"KBUV","Français","BE","Moutier"]
["UC Tramelan","UC Tramelan","Rue de la Promenade 29",null,2720,"Tramelan","BE","m.jeanrichard@bluewin.ch","Mathieu Jeanrichard","078 652 47 94","KBUV","Français","BE","Tramelan"]
["UH Lejon Zäziwil","UH Lejon Zäziwil","Postfach 134",null,3510,"Konolfingen","BE","lejon@gmx.net","Rolf Locher","079 254 45 08","NLV","Deutsch","BE","Zäziwil"]
["UH Wilderswil-Interlaken","UH Wilderswil-Interlaken","Mittlere Strasse 13",null,3800,"Unterseen","BE","desiree.bachmann@uhwi.ch","Desirée Bachmann","078 724 32 42","KBUV","Deutsch","BE","Wilderswil"]
["UH Zulgtal Eagles Heimenschwand","UH Zulgtal Eagles","Untere Heimenegg 4",null,3615,"Heimenschwand","BE","info@uhzulgtaleagles.ch","Fabian Fankhauser","079 603 27 24","KBUV","Deutsch","BE","Heimenschwand"]
["UHC Biel-Seeland","UHC Biel-Seeland","-",null,2500,"Biel/Bienne","BE","tk_uhcbs@googlegroups.com","-","078 902 46 79","KBUV","Deutsch","BE","Biel/Bienne"]
["UHC Blumenstein","UHC Blumenstein","Falkenfluhweg 6",null,3114,"Wichtrach","BE","p.haenni@uhcblumenstein.ch","Peter Hänni","078 708 07 05","KBUV","Deutsch","BE","Blumenstein"]
["UHC Bowil","UHC Bowil","Dorfstrasse 7a",null,3534,"Signau","BE","mike.laedrach@vtxmail.ch","Michael Lädrach",798224842,"KBUV","Deutsch","BE","Bowil"]
["UHC Brienz BE","UHC Brienz","Allmendstrasse 91",null,3860,"Meiringen","BE","aschi.t@bluemail.ch","Ernst Thöni","076 589 37 84","KBUV","Deutsch","BE","Brienz BE"]
["UHC Burgdorf","UHC Burgdorf","Spalierweg 5",null,3400,"Burgdorf","BE","info@uhcburgdorf.ch","c/o Nicolai Stucki","0041 77 416 42 89","KBUV","Deutsch","BE","Burgdorf"]
["UHC Grünenmatt","UHC Grünenmatt","Mühlebachweg 16",null,3452,"Grünenmatt","BE","admin@uhcg.ch","Thomas Schuler","079 362 08 27","NLV","Deutsch","BE","Grünenmatt"]
["UHC Guggisberg","UHC Guggisberg","Schwendi",null,3156,"Riffenmatt","BE","andregafner13@gmail.com","Andre Gafner",0,"KBUV","Deutsch","BE","Guggisberg"]
["UHC Kappelen","UHC Kappelen","Riedweg 11",null,3267,"Seedorf","BE","reto.huegli@uhckappelen.ch","David Baumann",788188656,"KBUV","Deutsch","BE","Kappelen"]
["UHC la Ferrière","UHC la Ferrière","La Chaux-d'Abel 45",null,2333,"La Ferrière","BE","jisler@windowslive.com","Jérôme Isler","079 485 66 63","KBUV","Français","NE","La Chaux-de-Fonds"]
["UHC Linden","UHC Linden","",null,3673,"Linden","BE","urs.bue@bluewin.ch","Urs Bühler",787421156,"KBUV","Deutsch","BE","Linden"]
["UHC Meiersmaad-Schwanden","UHC Meiersmaad","Schulstrasse 56",null,3604,"Thun","BE","info@uhcmeiersmaad.ch","Guido Keller",798149111,"KBUV","Deutsch","BE","Meiersmaad"]
["UHC Obersimmental Boltigen","UHC Obersimmental Boltigen","Schwendi 639",null,3765,"Oberwil","BE","mathias.schuetz90@gmail.com","Schütz Mathias",798400829,"KBUV","Deutsch","BE","Boltigen"]
["UHC Pieterlen","UHC Pieterlen","Solothurnstrasse, 24",null,2542,"Pieterlen","BE","jannik.zwahlen@bluewin.ch","Jannik Zwahlen","079 364 45 96","KBUV","Deutsch","BE","Pieterlen"]
["UHC Reconvilier","UHC Reconvilier","Les Oeuches 22",null,2534,"Orvin","BE","gbalz@bluewin.ch","Guillaume Balz","078 774 84 50","KBUV","Français","BE","Reconvilier"]
["UHC Rotweiss Erlenbach i. S.","UHC RW Erlenbach","Postfach",null,3762,"Erlenbach im Simmental","BE","barbara.sch93@gmail.com","Simone Meyes","079 503 64 14","KBUV","Deutsch","BE","Erlenbach i. S."]
["UHC Satus Dragons Heimberg","UHC S.D. Heimberg","Moosweg 24",null,3645,"Gwatt","BE","markusjenni@gmx.ch","Markus Jenni",792845238,"KBUV","Deutsch","BE","Heimberg"]
["UHC Seedorf BE","UHC Seedorf BE","Postfach",null,3267,"Seedorf BE","BE","m.hofmann@hofmannweibel-ag.ch","Martin Hofmann","079 277 27 36","KBUV","Deutsch","BE","Seedorf BE"]
["UHC Thun","UHC Thun","Rütlistrasse 19",null,3600,"Thun","BE","info@uhcthun.ch","Geschäftsstelle","079 902 36 16","NLV","Deutsch","BE","Thun"]
["UHC Vikings Bern","UHC Vikings Bern","Sägeweg 20",null,3044,"Innerberg","BE","alessandromongardi@gmail.com","Alessandro Mongardi","078 633 00 10","KBUV","Deutsch","BE","Bern"]
["UHC W.W. Schüpfen-Busswil","UHC W.W. Schüpfen-Busswil","Postfach 211",null,3054,"Schüpfen","BE","praesident@whitewings.ch","Eggli Martin","079 319 63 59","KBUV","Deutsch","BE","Schüpfen"]
["UHC Walkringen","UHC Walkringen","Oberburgstrasse 32",null,3326,"Krauchthal","BE","markus.brunner@deligno.ch","Markus Brunner","079 255 08 12","KBUV","Deutsch","BE","Walkringen"]
["UHC Wygorazzi Wyssachen","UHC Wygorazzi Wyssachen","Stäublereweid",null,4954,"Wyssachen","BE","eggimann.andrin@gmail.com","Andrin Eggimann","079 304 23 90","KBUV","Deutsch","BE","Wyssachen"]
["UHT Arni","UHT Arni","Parkettstrasse 28",null,3432,"Lützelflüh","BE","a.siegenthaler15@gmail.com","Siegenthaler Adrian",763348886,"KBUV","Deutsch","BE","Arni"]
["UHT Eggiwil","UHT Eggiwil","Lütiwil 34",null,3508,"Arni","BE","praesident@uht-eggiwil.ch","Stefan Jenni","079 572 94 10","NLV","Deutsch","BE","Eggiwil"]
["UHT Krattigen","UHT Krattigen","Thunstrasse 22",null,3612,"Steffisburg","BE","n.stettler@bluewin.ch","Nino Stettler",795730417,"KBUV","Deutsch","BE","Krattigen"]
["UHT Schangnau","UHT Schangnau","Wald 3",null,"Schan","Schangnau","BE","uht.schangnau@outlook.com","Stefan Gfeller",512810113,"KBUV","Deutsch","BE","Schangnau"]
["UHT Tornados Frutigen","UHT Tornados Frutigen","Adelbodenstrasse 9",null,3714,"Frutigen","BE","alexandra.roth87@gmail.com","Alexandra Roth",787832443,"KBUV","Deutsch","BE","Frutigen"]
["UHT TV Wohlen b. Bern","UHT TV Wohlen BE","Riedbachstrasse 77",null,3027,"Bern","BE","praesident@uht-tv-wohlen.ch","Stefan Sahli",795780440,"KBUV","Deutsch","BE","Wohlen b. Bern"]
["UHT Uetigen","UHT Uetigen","Feldheimweg 6",null,3432,"Lützelflüh","BE","marcelkuehni@gmx.ch","Kühni Marcel","079 205 68 09","KBUV","Deutsch","BE","Lützelflüh"]
["UHU Bern","UHU Bern","Greyerzstrasse 30",null,3013,"Bern","BE","jano@gmx.ch","Jano Stolz",313310278,"KBUV","Deutsch","BE","Bern"]
["Unihockey Berner Oberland Höfen","Unihockey Berner Oberland","Flurweg 18",null,3628,"Uttigen","BE","info@uhbeo.ch","Saskia Jeanneret","076 380 22 69","NLV","Deutsch","BE","Höfen"]
["Unihockey Langenthal Aarwangen","Unihockey Langenthal  Aarwangen","Postfach 1050",null,4901,"Langenthal","BE","info@ula.ch","Jérôme Grütter","079 573 99 25","NLV","Deutsch","BE","Langenthal"]
["Unihockey Schüpbach","Unihockey Schüpbach","Postfach",null,3535,"Schüpbach","BE","s.hutmacher@bluewin.ch","Susan Hutmacher",794812457,"KBUV","Deutsch","BE","Schüpbach"]
["Wizards Bern Burgdorf","Wizards Bern Burgdorf","Postfach 1069",null,3401,"Burgdorf","BE","info@wizards-bebu.ch","Tatjana Greber","079 628 51 34","NLV","Deutsch","BE","Bern"]
["Unihockey Youngsharks Port","Youngsharks Port","Postfach 148",null,2562,"Port","BE","robert.martinjas@gmx.ch","Robert Martinjas","078 664 99 64","KBUV","Deutsch","BE","Port"]